Cogmind - Beta 14 @@@ ROGUE MODE // 2024.12.10 @ 19:50:08 Player: Skullbearer Result: Destroyed by D-53 Grenadier with Mini Grenade Launcher Performance ------------- Evolutions (0) 0 Regions Visited (2) 400 Robots Destroyed (6) 30 Value Destroyed (227) 227 Prototype IDs (0) 0 Alien Tech Used (0) 0 Bonus (0) 0 TOTAL SCORE: 657 Bonus ------- None Cogmind --------- Core Integrity 0/250 Matter 265/300 Energy 99/100 System Corruption 0% Temperature Cool (0) Movement Core (100) Ox1 Location -10/Mines Parts ------- > --- POWER (1) -------- (None) > --- PROPULSION (2) --- (None) > --- UTILITY (2) ------ Small Storage Unit Power Shielding > --- WEAPON (2) ------- (None) > --- INVENTORY (8) ---- Aluminum Leg Aluminum Leg Heat Sink Terrain Scanner Core Shielding Mining Laser Peak State ------------ > --- POWER ------------ Light Ion Engine > --- PROPULSION ------- Wheel Compact Wheel > --- UTILITY ---------- Small Storage Unit Power Shielding > --- WEAPON ----------- Medium Laser Assault Rifle > --- INVENTORY -------- Light Ion Engine Aluminum Leg Aluminum Leg EM Pulse Gun [Rating: 7] Favorites ----------- Power Light Ion Engine Engine Light Ion Engine Propulsion Compact Wheel Leg Aluminum Leg Wheel Compact Wheel Utility Small Storage Unit Storage Small Storage Unit Protection Power Shielding Weapon Assault Rifle Energy Gun Medium Laser Ballistic Gun Assault Rifle Build | -11 -10 -10 ------- Run | Yrd Mat Min Slots Evolved . | . . . Power . | . . . Propulsion . | . . . Utility . | . . . Weapon . | . . . Parts Attached 13 | 6 4 3 Power 2 | 1 1 . Engine 2 | 1 1 . Core . | . . . Reactor . | . . . Propulsion 5 | 2 1 2 Treads . | . . . Leg 3 | . 1 2 Wheel 2 | 2 . . Hover . | . . . Flight . | . . . Utility 2 | 1 1 . Device . | . . . Storage 1 | 1 . . Processor . | . . . Hackware . | . . . Protection 1 | . 1 . Artifact . | . . . Weapon 4 | 2 1 1 Energy Gun 3 | 1 1 1 Energy Cannon . | . . . Ballistic Gun 1 | 1 . . Ballistic Cannon . | . . . Launcher . | . . . Special Weapon . | . . . Impact Weapon . | . . . Slashing Weapon . | . . . Piercing Weapon . | . . . Special Melee Weapon . | . . . Unidentified Prototypes . | . . . Parts Lost 9 | . 2 7 Power 2 | . 1 1 Propulsion 4 | . 1 3 Utility . | . . . Weapon 3 | . . 3 Highest Loss Streak 7 | . 1 7 To Critical Strikes . | . . . Average Slot Usage (%) 94 | . 95 85 Engine 12 | . 12 14 Leg 5 | . 4 16 Wheel 20 | . 21 8 Storage 14 | . 14 14 Protection 13 | . 13 14 Energy Gun 13 | . 14 8 Ballistic Gun 13 | . 14 8 Peak Build Rating 7 | 6 7 7 Average Rating 6 | 4 6 5 On Entrance 4 | . 6 7 Naked Turns . | . . . Heaviest Build 13 | 12 13 13 Greatest Support 26 | 26 26 20 Greatest Overweight (x) 1 | . . 1 Average Overweight (x) . | . . . Largest Inventory Capacity 8 | 8 8 8 Average Capacity 7 | 7 8 8 Most Carried 8 | 4 8 8 Average Carried 6 | 2 7 7 Final Capacity 8 | 8 8 8 Final Carried 8 | 4 8 6 Class Distribution -------------------- 100% | Mutant Dominant Class ---------------- Mutant | -10/Materials Mutant | -10/Mines Resources | -11 -10 -10 ----------- Run | Yrd Mat Min Matter Collected 304 | 241 63 . Remotely . | . . . Salvage Created 220 | . 220 . Parts 11 | . 11 . Haulers Intercepted . | . . . Recyclers Shooed . | . . . Parts Field Recycled . | . . . Retrieved Matter . | . . . Parts Self-Destructed . | . . . Prevented . | . . . Kills | -11 -10 -10 ------- Run | Yrd Mat Min Combat Hostiles Destroyed 6 | . 6 . Guns 5 | . 5 . AOE 1 | . 1 . Classes Destroyed 1 | . 1 . Grunt 6 | . 6 . Best Kill Streak 2 | . 2 . Combat Bots Only 2 | . 2 . Max Kills in Single Turn 1 | . 1 . Gunslinging . | . . . Exploded 1 | . 1 . Melee . | . . . Uniques/NPCs Destroyed . | . . . Combat | -11 -10 -10 -------- Run | Yrd Mat Min Hostile Shots Fired 51 | . 36 15 Missed 11 | . 8 3 Damage Taken 988 | . 387 601 Core 259 | . 111 148 Absorbed by Shields . | . . . Redirected to Shielding 34 | . 16 18 Core Remaining (%) 100 | 100 . . Volleys Fired 18 | . 18 . Largest 2 | . 2 . Hottest 70 | . 70 . Shots Fired 36 | . 36 . Gun 36 | . 36 . Cannon . | . . . Launcher . | . . . Special . | . . . Kinetic 18 | . 18 . Thermal 18 | . 18 . Explosive . | . . . Electromagnetic . | . . . Robot Hit Streak 9 | . 9 . Robot Miss Streak 2 | . 2 . Penetration Max . | . . . Secondary Targets 2 | . 2 . Max Gunslinging Chain 1 | . 1 . Shots Hit Robots 28 | . 28 . Core Hits 12 | . 12 . Critical Kills . | . . . Critical Parts Destroyed . | . . . Critical Strikes 3 | . 3 . Burn 3 | . 3 . Melee Attacks . | . . . Impact . | . . . Slashing . | . . . Piercing . | . . . Sneak Attacks . | . . . Combat Hostiles . | . . . Follow-up Attacks . | . . . Damage Inflicted 484 | . 484 . Guns 370 | . 370 . Cannons . | . . . Explosions 114 | . 114 . Melee . | . . . Ramming . | . . . Kinetic 207 | . 207 . Thermal 163 | . 163 . Explosive 114 | . 114 . Electromagnetic . | . . . Impact . | . . . Slashing . | . . . Piercing . | . . . Highest Corruption . | . . . Average Corruption . | . . . Corruption Purged . | . . . Corruption Blocked . | . . . Overload Shots . | . . . Overflow Damage . | . . . Projectiles . | . . . Explosions . | . . . Melee . | . . . Knockbacks . | . . . Impact . | . . . Kinetic . | . . . Secondary . | . . . Self-Inflicted Damage 69 | . 69 . Shots 1 | . 1 . Rammed . | . . . Targets Rammed . | . . . Kicked . | . . . Crushed . | . . . Highest Temperature 138 | . 138 . Average Temperature 51 | . 51 . Received Heat Transfer 180 | . 180 . Siege Activations . | . . . Robots Corrupted . | . . . Combat Hostiles . | . . . Parts Fried . | . . . Impact Corruptions . | . . . Robots Melted . | . . . Combat Hostiles . | . . . Parts Melted . | . . . Heat Transferred 703 | . 703 . Parts Sabotaged . | . . . Parts Stolen . | . . . Parts Stripped . | . . . Power Chain Reactions . | . . . Alert | -11 -10 -10 ------- Run | Yrd Mat Min Peak Influence 169 | . 169 . Initial . | . . . Average 51 | . 64 . Maximum Alert Level . | . . . Low Security (%) 100 | 100 100 100 Level 1 . | . . . Level 2 . | . . . Level 3 . | . . . Level 4 . | . . . Level 5 . | . . . High Security . | . . . Max Security . | . . . Squads Dispatched 1 | . 1 . Investigation . | . . . Extermination . | . . . Reinforcement 1 | . 1 . Assault . | . . . Garrison . | . . . Intercept . | . . . Searches Triggered . | . . . Construction Impeded . | . . . Haulers Reinforced . | . . . Active Scanning Responses . | . . . Cargo Convoy Interrupts . | . . . Stealth | -11 -10 -10 --------- Run | Yrd Mat Min Distress Signals . | . . . Communications Jammed . | . . . Distress Signals . | . . . Times Spotted 10 | . 8 2 Peak Tracking Total 2 | . 2 2 Tactical Retreats . | . . . Traps | -11 -10 -10 ------- Run | Yrd Mat Min Traps Triggered . | . . . Indirectly . | . . . Trap Hack Attempts . | . . . Triggered . | . . . Disarmed . | . . . Reprogrammed . | . . . Reused . | . . . Traps Extracted . | . . . Installed . | . . . Triggered . | . . . Machines | -11 -10 -10 ---------- Run | Yrd Mat Min Machines Disabled 1 | . 1 . Max in Single Turn 1 | . 1 . Machines Repaired . | . . . Machines Dismantled . | . . . Machines Sabotaged . | . . . Overloaded Fab Kills . | . . . Hacking | -11 -10 -10 --------- Run | Yrd Mat Min Machines Accessed 2 | . 2 . Terminals 2 | . 2 . Fabricators . | . . . Repair Stations . | . . . Recycling Units . | . . . Scanalyzers . | . . . Garrison Access . | . . . Total Hacks 3 | . 3 . Successful . | . . . Failed 3 | . 3 . Catastrophic 1 | . 1 . Database Lockouts . | . . . Manual . | . . . Terminals 3 | . 3 . Fabricators . | . . . Repair Stations . | . . . Recycling Units . | . . . Scanalyzers . | . . . Garrison Access . | . . . Terminal Hacks . | . . . Fabricator Hacks . | . . . Repair Station Hacks . | . . . Recycling Unit Hacks . | . . . Scanalyzer . | . . . Garrison Access Hacks . | . . . Unauthorized Hacks . | . . . Terminals . | . . . Fabricators . | . . . Repair Stations . | . . . Recycling Units . | . . . Scanalyzers . | . . . Garrison Access . | . . . Data Cores Recovered . | . . . Used . | . . . Hacking Detections 2 | . 2 . Full Trace Events . | . . . Feedback Events . | . . . Feedback Blocked . | . . . Robot Schematics Acquired . | . . . Robots Built . | . . . Authchips . | . . . Time . | . . . Total Robot Build Rating . | . . . Part Schematics Acquired . | . . . Parts Built . | . . . Authchips . | . . . Time . | . . . Total Part Build Rating . | . . . Parts Repaired . | . . . Time . | . . . Parts Recycled . | . . . Recycled Matter . | . . . Retrieved Matter . | . . . Retrieved Components . | . . . Parts Scanalyzed . | . . . Part Schematics Acquired . | . . . Parts Damaged . | . . . Bothacking | -11 -10 -10 ------------ Run | Yrd Mat Min Used RIF Installer . | . . . Robots Hacked . | . . . Non-combat . | . . . Combat . | . . . Robot Hacks Applied . | . . . Relay Couplers Released . | . . . Fabnet Peak Effective % . | . . . Robots Rewired . | . . . Allies Hacked . | . . . Hacks Repelled . | . . . Allies | -11 -10 -10 -------- Run | Yrd Mat Min Total Allies . | . . . Largest Group . | . . . Highest-Rated Group . | . . . Highest-Rated Ally . | . . . Total Orders . | . . . Ally Attacks . | . . . Total Damage . | . . . Kills . | . . . Allies Corrupted . | . . . Allies Melted . | . . . Intel | -11 -10 -10 ------- Run | Yrd Mat Min Robot Analysis Total . | . . . Derelict Logs Recovered 1 | . . 1 Drone Launches . | . . . Drone Recoveries . | . . . Exploration | -11 -10 -10 ------------- Run | Yrd Mat Min Turns Passed 543 | 59 437 47 Spaces Moved 312 | 55 218 39 Core 7 | 6 . 1 Treads . | . . . Legs 13 | . . 13 Wheels 292 | 49 218 25 Hover . | . . . Flight . | . . . Fastest Speed 50 | 50 90 100 Average Speed 95 | 84 96 106 Slowest Speed 120 | 90 100 120 Overloaded Moves . | . . . Propulsion Burnouts . | . . . Robots Hopped . | . . . Cave-ins Triggered . | . . . Exploration Rate (%) 16 | 4 31 15 Regions Visited 2 Branch Regions 1 Pre-discovered Areas . | . . . Known Exits Taken . | . . . Unknown Exits Taken 2 | 1 1 . Scrap Searched . | . . . Spaces Dug . | . . . Terrain Destroyed 17 | . 17 . Melee . | . . . Projectile . | . . . AOE 17 | . 17 . Terrain Rammed . | . . . Walls Destroyed . | . . . Machines Disabled . | . . . Actions | -11 -10 -10 --------- Run | Yrd Mat Min Total 516 | 64 408 44 Wait 164 | . 162 2 Move 310 | 54 217 39 Hop . | . . . Pick Up 10 | 4 6 . Fast Attach 8 | 6 2 . Attach 3 | . 1 2 Detach . | . . . Swap 2 | . 1 1 Drop 1 | . 1 . Fire 18 | . 18 . Melee . | . . . Ram . | . . . Kick . | . . . Crush . | . . . Escape Stasis . | . . . Rewire . | . . . Trap . | . . . Miscellaneous . | . . . Route ------- -11/Scrapyard -10/Materials -10/Mines (discovered 1 exit: Mat) History --------- Turn | Location | Event 21 | -11/Scrapyard | Discovered new exit (range 16) 60 | -11/Scrapyard | Entered Materials 301 | -10/Materials | Build established: Mutant 433 | -10/Materials | Discovered new exit (range 16) 497 | -10/Materials | Entered Mines 498 | -10/Mines | Assembled infested the area 506 | -10/Mines | Identified exit to Materials 527 | -10/Mines | Core integrity fell below 50% 541 | -10/Mines | Core integrity fell below 20% 544 | -10/Mines | Destroyed by D-53 Grenadier with Mini Grenade Launcher Last Messages --------------- Acquired derelict log, extracted data. Loading 1 Mines exit... C-30 ARC bursts open, deploying its payload. D-53 Grenadier unfolds itself. Assault Rifle destroyed. Com. Wheel destroyed. EM Pulse Gun destroyed. U-05 Engineer lays Concrete. The unstable cave ceiling collapses. U-05 Engineer lays Concrete. The unstable cave ceiling collapses. Aluminum Leg destroyed. U-05 Engineer lays Concrete. Lgt. Ion Engine destroyed. The unstable cave ceiling collapses. U-05 Engineer lays Concrete. The unstable cave ceiling collapses. U-05 Engineer lays Concrete. Aluminum Leg destroyed. U-05 Engineer lays Concrete. Map ----- +----------------------------------------------------+ | ????????????????????????????????????????????????? | | ????????????????????????????????????????????????? | | ????????????????????????????????????????????????? | | ????????????????????????????????????????????????? | | ????????????????????????????????????????????????? | | ????????????????????????????????????????????????? | | ????????????????????????????????????????????????? | | ????????????????????????????????????????????????? | | ????????????????????????????????????????????????? | | ????????????????????????????????????????????????? | | ????????????????????????????????????????????????? | | ?????????????? ?????????????????????????????????? | | ?????????????? ?????????????????????????????????? | | ?????????????# ?????????????????????????????????? | | ????????????## ?????????????????????????????????? | | ??????????### ?????????????????????????????????? | | ?????????## ?????????????????????????????????? | | ?????????# ####?????????????????????????????? | | ?????????# # ####???########???????????????? | | ????????## ## ##?## #???????????????? | | ???????## # ## ????????????????? | | ??????## # #??????????????????? | | ??????# ##?????????????????? | | ????# d #?????????????????? | | ???#" d #??????????????????? | | ?# "%" @ #??????????????????? | | # " #??????????????????? | | ? u # ##?????????????????? | | ? #### ######### #?????????????????? | | ?#?????## #????????### #?????????????????? | | ????????# ??????????## ##?????????????????? | | ????????## #?????????## #??????????????????? | | ?????????###?????????## #??????????????????? | | ?????????????????????# ##??????????????????? | | ?????????????????????# #???????????????????? | | ????????????????????# ##???????????????????? | | ???????????????????# """ #????????????????????? | | ???????????????????# """ ????????????????????? | | ???????????????????# """ ???????????????????? | | ???????????????????# ??????????????????? | | ???????????????????###### ??????????????????? | | ?????????????????????????# ##?????????????????? | | ??????????????????????????####??????????????????? | | ????????????????????????????????????????????????? | | ????????????????????????????????????????????????? | | | | | | | | | | | +----------------------------------------------------+ Best States ------------- Heat Dissipation 25 Energy Generation 10 Energy Capacity 125 Matter Stores 300 Matter Capacity 300 Sight Range 16 Terrain Scan Density 10 Power Shielding 33 Evasion (%) 55 Item Schematics ----------------- None Robot Schematics ------------------ None Fabricated ------------ Nothing Alien Tech Used ----------------- None Achievements -------------- None Challenges ------------ None Game ------ Seed RefineryDerelictSabre Manual? 0 Play Time 00:05:36 Cumulative 14.6 hours Start 2024.12.10 @ 19:43:14 End 2024.12.10 @ 19:50:08 Sessions 1 Manual Loads 0 Difficulty Rogue Special Mode None Game No. 29 Rogue 29 Adventurer 0 Explorer 0 Win Type - Total 0 Types 0/0/0/0/0/0/0/0/0 Lore% 12 Gallery% 18 Achievement% 16 Wizard Run 0 Options --------- Layout 1 ASCII 0 Keyboard 0 Movement Numpad Keybinds 0 Fullscreen 1 Font 32/SmallcapsGlow Map View 50x35 Zoom Use 0% Tactical HUD 0 Map Filters NONE Filters NONE Steam 1 RUN: f6b38bc9-4551-46e3-aa75-e707d24253b8